[Event "44th Chess Olympiad Open 2022"]
[Site "Chennai"]
[Date "2022.07.31"]
[Round "3.29"]
[White "Chekh Adm Khedr, Aram"]
[Black "Schitco, Ivan"]
[Result "1-0"]
[WhiteElo "2147"]
[BlackElo "2490"]
[Annotator "RC"]
[PlyCount "199"]
[EventDate "2022.??.??"]
[TimeControl "60"]

1. e4 {[%emt 0:00:03]} c5 {[%emt 0:00:27]} 2. Nf3 {[%emt 0:00:05]} a6 {[%emt 0:
00:00]} 3. c3 {[%emt 0:01:02]} d5 {[%emt 0:02:01]} 4. exd5 {[%emt 0:00:10]}
Qxd5 {[%emt 0:00:09]} 5. d4 {[%emt 0:00:06]} Nf6 {[%emt 0:00:57]} 6. Be2 {
[%emt 0:00:30]} Bg4 {[%emt 0:03:16]} 7. h3 {[%emt 0:01:30]} Bh5 {[%emt 0:00:51]
} 8. O-O {[%emt 0:00:57]} e6 {[%emt 0:00:46]} 9. c4 {[%emt 0:03:19]} Qd6 {
[%emt 0:09:19]} 10. d5 {[%emt 0:02:33]} exd5 {[%emt 0:09:06]} 11. cxd5 {
[%emt 0:00:12]} Be7 {[%emt 0:01:10]} 12. Nc3 {[%emt 0:02:24]} O-O {[%emt 0:00:
00]} 13. Nd2 {[%emt 0:15:47]} Bxe2 {[%emt 0:12:27]} 14. Qxe2 {[%emt 0:01:44]}
Re8 {[%emt 0:02:38]} 15. Nc4 {[%emt 0:03:23]} Qc7 {[%emt 0:01:56]} 16. Qf3 {
[%emt 0:13:11]} Bd6 {[%emt 0:06:40]} 17. Nxd6 {[%emt 0:01:31]} Qxd6 {[%emt 0:
00:00]} 18. Bf4 {[%emt 0:00:07]} Qb6 {[%emt 0:00:32]} 19. g4 {[%emt 0:09:14]}
h6 {[%emt 0:03:12]} 20. h4 {[%emt 0:06:46]} Nbd7 {[%emt 0:09:22]} 21. g5 {
[%emt 0:00:03]} hxg5 {[%emt 0:00:46]} 22. hxg5 {[%emt 0:00:03]} Nh7 {[%emt 0:
00:00]} 23. d6 {[%emt 0:00:11]} Qd8 {[%emt 0:17:48]} 24. Qg3 {[%emt 0:07:04]}
Ndf8 {[%emt 0:01:47]} 25. Rad1 {[%emt 0:05:02]} Ne6 {[%emt 0:04:31]} 26. g6 {
[%emt 0:09:33]} fxg6 {[%emt 0:00:17]} 27. Nd5 {[%emt 0:01:49]} Nf6 {[%emt 0:00:
00]} 28. Ne7+ {[%emt 0:01:30]} Rxe7 {[%emt 0:00:37]} 29. dxe7 {[%emt 0:00:04]}
Qxe7 {[%emt 0:00:05]} 30. Be3 {[%emt 0:00:35]} Qf7 {[%emt 0:02:23]} 31. Qf3 {
[%emt 0:05:52]} g5 {[%emt 0:00:32]} 32. Rd6 {[%emt 0:01:00]} Re8 {[%emt 0:00:
00]} 33. Rfd1 {[%emt 0:01:45]} Qg6 {[%emt 0:02:17]} 34. Qxb7 {[%emt 0:01:49]}
Ne4 {[%emt 0:00:22]} 35. Qc6 {[%emt 0:04:39]} Nxd6 {[%emt 0:01:12]} 36. Rxd6 {
[%emt 0:00:01]} Qh5 {[%emt 0:00:30]} 37. Qd5 {[%emt 0:00:53]} Qg4+ {[%emt 0:00:
00]} 38. Kf1 {[%emt 0:00:01]} Kf7 {[%emt 0:01:40]} 39. Rd7+ {[%emt 0:00:32]}
Re7 {[%emt 0:00:30]} 40. Rxe7+ {[%emt 0:02:12]} Kxe7 {[%emt 0:00:10]} 41. Bxc5+
{[%emt 0:30:08]} Nxc5 {[%emt 0:32:06]} 42. Qxc5+ {[%emt 0:00:00]} Kf7 {[%emt 0:
00:00]} 43. Qd5+ {[%emt 0:00:00]} Kf6 {[%emt 0:00:00]} 44. b3 {[%emt 0:00:00]}
Qc8 {[%emt 0:00:00]} 45. Qf3+ {[%emt 0:00:00]} Ke7 {[%emt 0:00:00]} 46. Qe4+ {
[%emt 0:00:00]} Kf6 {[%emt 0:00:00]} 47. Ke2 {[%emt 0:00:00]} Qc7 {[%emt 0:00:
00]} 48. Qd4+ {[%emt 0:00:00]} Kf5 {[%emt 0:00:00]} 49. Qd3+ {[%emt 0:00:00]}
Kf6 {[%emt 0:00:00]} 50. Qxa6+ {[%emt 0:00:00]} Kf5 {[%emt 0:00:00]} 51. Qd3+ {
[%emt 0:00:00]} Kf6 {[%emt 0:00:00]} 52. Qf3+ {[%emt 0:00:00]} Ke6 {[%emt 0:00:
00]} 53. Qe4+ {[%emt 0:00:00]} Kf6 {[%emt 0:00:00]} 54. Kf1 {[%emt 0:00:00]}
Qc1+ {[%emt 0:01:24]} 55. Kg2 {[%emt 0:00:00]} Qd2 {[%emt 0:00:49]} 56. a4 {
[%emt 0:00:00]} Qa5 {[%emt 0:00:59]} 57. Qc6+ {[%emt 0:00:00]} Kf7 {[%emt 0:00:
00]} 58. Qc4+ {[%emt 0:00:00]} Kf6 {[%emt 0:00:10]} 59. Qe4 {[%emt 0:00:00]}
Kf7 {[%emt 0:01:10]} 60. Kg3 {[%emt 0:00:00]} g6 {[%emt 0:02:48]} 61. Qc4+ {
[%emt 0:00:00]} Kf6 {[%emt 0:00:10]} 62. Qc6+ {[%emt 0:00:00]} Kg7 {[%emt 0:00:
00]} 63. Kg2 {[%emt 0:00:00]} Qb4 {[%emt 0:01:24]} 64. Qd5 {[%emt 0:00:00]}
Qg4+ {[%emt 0:00:42]} 65. Kf1 {[%emt 0:00:00]} Qh3+ {[%emt 0:00:19]} 66. Ke2 {
[%emt 0:00:00]} g4 {[%emt 0:01:02]} 67. Qd4+ {[%emt 0:00:00]} Kh7 {[%emt 0:00:
00]} 68. Qe3 {[%emt 0:00:00]} Qh5 {[%emt 0:00:35]} 69. Kd2 {[%emt 0:00:00]}
Qd5+ {[%emt 0:00:46]} 70. Kc2 {[%emt 0:00:00]} Qd6 {[%emt 0:00:22]} 71. Kb2 {
[%emt 0:00:00]} Qb4 {[%emt 0:00:08]} 72. Kc2 {[%emt 0:00:49]} Kg8 {[%emt 0:00:
00]} 73. Qe6+ {[%emt 0:02:05]} Kg7 {[%emt 0:00:43]} 74. Qc4 {[%emt 0:00:33]}
Qb6 {[%emt 0:00:06]} 75. Kd3 {[%emt 0:00:31]} Kh6 {[%emt 0:00:35]} 76. Ke2 {
[%emt 0:00:33]} Qb7 {[%emt 0:00:36]} 77. Qc3 {[%emt 0:01:26]} Kh5 {[%emt 0:00:
00]} 78. a5 {[%emt 0:00:49]} Qe4+ {[%emt 0:00:08]} 79. Kd2 {[%emt 0:00:42]}
Qf4+ {[%emt 0:00:09]} 80. Ke1 {[%emt 0:00:05]} Qe4+ {[%emt 0:00:08]} 81. Kd1 {
[%emt 0:00:28]} Qh1+ {[%emt 0:00:55]} 82. Kd2 {[%emt 0:00:54]} Qd5+ {[%emt 0:
00:00]} 83. Kc1 {[%emt 0:00:41]} Qf5 {[%emt 0:00:44]} 84. Qd2 {[%emt 0:00:27]}
Qe4 {[%emt 0:00:46]} 85. Kb2 {[%emt 0:01:25]} Qe5+ {[%emt 0:00:42]} 86. Ka3 {
[%emt 0:00:07]} Qc5+ {[%emt 0:00:30]} 87. b4 {[%emt 0:00:23]} Qc4 {[%emt 0:00:
00]} 88. Qe3 {[%emt 0:00:28]} g5 {[%emt 0:00:26]} 89. Qc5 {[%emt 0:00:46]} Qd3+
{[%emt 0:00:19]} 90. Ka4 {[%emt 0:00:02]} Qe2 {[%emt 0:00:39]} 91. Qd4 {
[%emt 0:00:47]} Qf1 {[%emt 0:00:42]} 92. b5 {[%emt 0:00:25]} Qc1 {[%emt 0:00:
00]} 93. a6 {[%emt 0:00:20]} Qc2+ {[%emt 0:00:37]} 94. Kb4 {[%emt 0:00:09]}
Qb1+ {[%emt 0:00:24]} 95. Kc5 {[%emt 0:01:20]} Qf5+ {[%emt 0:00:17]} 96. Kc6 {
[%emt 0:00:33]} Qe6+ {[%emt 0:00:23]} 97. Kc7 {[%emt 0:00:30]} Qf7+ {[%emt 0:
00:00]} 98. Kc6 {[%emt 0:03:46]} Qe6+ {[%emt 0:00:49]} 99. Qd6 {[%emt 0:00:01]}
Qf7 {[%emt 0:00:19]} 100. b6 {[%emt 0:01:16]} 1-0

[Event "44th Chess Olympiad Open 2022"]
[Site "Chennai"]
[Date "2022.07.31"]
[Round "3.30"]
[White "Meier, Georg"]
[Black "Nassr, Ali"]
[Result "1-0"]
[WhiteElo "2613"]
[BlackElo "2263"]
[Annotator "RC"]
[PlyCount "65"]
[EventDate "2022.??.??"]
[TimeControl "60"]

1. d4 {[%emt 0:00:03]} d5 {[%emt 0:00:13]} 2. c4 {[%emt 0:00:07]} e6 {[%emt 0:
00:00]} 3. Nf3 {[%emt 0:00:14]} Nf6 {[%emt 0:00:19]} 4. g3 {[%emt 0:00:17]} Be7
{[%emt 0:00:12]} 5. Bg2 {[%emt 0:00:08]} O-O {[%emt 0:00:13]} 6. O-O {[%emt 0:
00:00]} c6 {[%emt 0:02:00]} 7. Nc3 {[%emt 0:01:44]} b6 {[%emt 0:01:04]} 8. Ne5
{[%emt 0:01:00]} Bb7 {[%emt 0:01:14]} 9. e4 {[%emt 0:00:15]} dxe4 {[%emt 0:00:
00]} 10. Nxe4 {[%emt 0:00:09]} Nxe4 {[%emt 0:01:14]} 11. Bxe4 {[%emt 0:00:09]}
Qc7 {[%emt 0:04:53]} 12. Bf4 {[%emt 0:00:42]} Bd6 {[%emt 0:02:12]} 13. Re1 {
[%emt 0:00:30]} Nd7 {[%emt 0:03:52]} 14. Nxd7 {[%emt 0:06:41]} Qxd7 {[%emt 0:
00:00]} 15. Bxd6 {[%emt 0:01:36]} Qxd6 {[%emt 0:06:05]} 16. Qc2 {[%emt 0:00:07]
} g6 {[%emt 0:04:22]} 17. Rad1 {[%emt 0:00:10]} Rfd8 {[%emt 0:04:16]} 18. c5 {
[%emt 0:01:21]} Qc7 {[%emt 0:04:56]} 19. Qc3 {[%emt 0:15:26]} Rd7 {[%emt 0:00:
00]} 20. a4 {[%emt 0:00:28]} Qd8 {[%emt 0:19:32]} 21. b4 {[%emt 0:18:18]} bxc5
{[%emt 0:05:43]} 22. Qxc5 {[%emt 0:00:45]} Qb6 {[%emt 0:00:00]} 23. a5 {
[%emt 0:00:36]} Qb5 {[%emt 0:01:42]} 24. Bf3 {[%emt 0:17:56]} a6 {[%emt 0:00:
00]} 25. Qc3 {[%emt 0:10:00]} Qg5 {[%emt 0:07:01]} 26. Re5 {[%emt 0:06:26]} Qd8
{[%emt 0:14:58]} 27. Bxc6 {[%emt 0:05:21]} Rc8 {[%emt 0:01:35]} 28. Rc5 {
[%emt 0:00:25]} Bxc6 {[%emt 0:01:33]} 29. Rxc6 {[%emt 0:03:10]} Rxc6 {[%emt 0:
00:00]} 30. Qxc6 {[%emt 0:00:06]} Rd6 {[%emt 0:00:25]} 31. Qb7 {[%emt 0:02:53]}
Rxd4 {[%emt 0:00:47]} 32. Rxd4 {[%emt 0:00:07]} Qxd4 {[%emt 0:00:02]} 33. b5 {
[%emt 0:00:19]} 1-0

[Event "44th Chess Olympiad Open 2022"]
[Site "Chennai"]
[Date "2022.07.31"]
[Round "3.30"]
[White "Diaz Hollemaert, Nahuel"]
[Black "Djabri, Massinas"]
[Result "1-0"]
[WhiteElo "2425"]
[BlackElo "2206"]
[Annotator "RC"]
[PlyCount "65"]
[EventDate "2022.??.??"]
[TimeControl "60"]

1. c4 {[%emt 0:00:07]} e5 {[%emt 0:00:18]} 2. Nc3 {[%emt 0:04:50]} Nc6 {
[%emt 0:00:11]} 3. e3 {[%emt 0:01:14]} Nf6 {[%emt 0:02:30]} 4. Nf3 {[%emt 0:00:
00]} d6 {[%emt 0:05:25]} 5. a3 {[%emt 0:04:49]} a5 {[%emt 0:04:02]} 6. Be2 {
[%emt 0:03:40]} Be7 {[%emt 0:02:01]} 7. O-O {[%emt 0:03:11]} O-O {[%emt 0:00:
00]} 8. d4 {[%emt 0:07:17]} Bg4 {[%emt 0:18:27]} 9. d5 {[%emt 0:17:40]} Nb8 {
[%emt 0:04:24]} 10. e4 {[%emt 0:07:29]} Nfd7 {[%emt 0:07:30]} 11. Rb1 {[%emt 0:
00:00]} Bxf3 {[%emt 0:20:05]} 12. Bxf3 {[%emt 0:00:02]} Nb6 {[%emt 0:00:13]}
13. Be2 {[%emt 0:07:23]} a4 {[%emt 0:00:32]} 14. g3 {[%emt 0:09:17]} Bg5 {
[%emt 0:03:59]} 15. f4 {[%emt 0:00:15]} Bf6 {[%emt 0:00:06]} 16. Be3 {[%emt 0:
00:00]} N8d7 {[%emt 0:01:07]} 17. Qc2 {[%emt 0:03:10]} Re8 {[%emt 0:04:45]} 18.
f5 {[%emt 0:02:31]} Bg5 {[%emt 0:01:32]} 19. Bf2 {[%emt 0:00:01]} Nc5 {[%emt 0:
00:00]} 20. h4 {[%emt 0:02:59]} Bh6 {[%emt 0:00:49]} 21. Kg2 {[%emt 0:00:56]}
Nbd7 {[%emt 0:01:55]} 22. Rbd1 {[%emt 0:01:40]} Qb8 {[%emt 0:13:27]} 23. Nb5 {
[%emt 0:01:21]} Nb3 {[%emt 0:00:50]} 24. Bg1 {[%emt 0:04:47]} f6 {[%emt 0:00:
00]} 25. Rf3 {[%emt 0:01:56]} Ndc5 {[%emt 0:00:17]} 26. Bh2 {[%emt 0:01:17]}
Rd8 {[%emt 0:00:54]} 27. Bg1 {[%emt 0:00:31]} Rd7 {[%emt 0:01:12]} 28. g4 {
[%emt 0:01:19]} Rd8 {[%emt 0:01:07]} 29. Bf1 {[%emt 0:00:37]} c6 {[%emt 0:00:
00]} 30. Nc3 {[%emt 0:00:09]} Qa7 {[%emt 0:00:15]} 31. Kh1 {[%emt 0:00:28]} Nd4
{[%emt 0:00:16]} 32. Rdd3 {[%emt 0:00:28]} Nxf3 {[%emt 0:00:06]} 33. Rxf3 {
[%emt 0:00:03]} 1-0

[Event "44th Chess Olympiad Open 2022"]
[Site "Chennai"]
[Date "2022.07.31"]
[Round "3.30"]
[White "Brahami, Lamine"]
[Black "Hoffman, Alejandro"]
[Result "1/2-1/2"]
[WhiteElo "2189"]
[BlackElo "2390"]
[Annotator "RC"]
[PlyCount "98"]
[EventDate "2022.??.??"]
[TimeControl "60"]

1. d4 {[%emt 0:00:09]} d6 {[%emt 0:00:20]} 2. Nf3 {[%emt 0:00:42]} Nf6 {
[%emt 0:01:03]} 3. Bf4 {[%emt 0:02:34]} g6 {[%emt 0:03:52]} 4. h3 {[%emt 0:00:
00]} Bg7 {[%emt 0:00:26]} 5. e3 {[%emt 0:00:41]} O-O {[%emt 0:00:38]} 6. Be2 {
[%emt 0:00:10]} c5 {[%emt 0:00:46]} 7. c3 {[%emt 0:02:07]} Qb6 {[%emt 0:01:22]}
8. Qb3 {[%emt 0:01:45]} Be6 {[%emt 0:00:19]} 9. Qxb6 {[%emt 0:03:37]} axb6 {
[%emt 0:00:08]} 10. a3 {[%emt 0:00:34]} Nc6 {[%emt 0:08:38]} 11. Nbd2 {[%emt 0:
00:00]} cxd4 {[%emt 0:17:53]} 12. exd4 {[%emt 0:08:22]} Nd5 {[%emt 0:02:29]}
13. Bh2 {[%emt 0:00:00]} Nc7 {[%emt 0:03:45]} 14. O-O {[%emt 0:04:31]} b5 {
[%emt 0:00:40]} 15. Rfe1 {[%emt 0:04:22]} Rfe8 {[%emt 0:02:57]} 16. Bd3 {
[%emt 0:02:10]} Bd5 {[%emt 0:09:10]} 17. Ng5 {[%emt 0:01:54]} f5 {[%emt 0:00:
00]} 18. Rad1 {[%emt 0:21:58]} Na5 {[%emt 0:13:43]} 19. Be2 {[%emt 0:17:10]}
Rac8 20. Bf3 {[%emt 0:06:38]} Bxf3 {[%emt 0:00:00]} 21. Ngxf3 {[%emt 0:00:00]}
Nd5 {[%emt 0:00:26]} 22. Re2 {[%emt 0:00:00]} Bh6 {[%emt 0:00:00]} 23. Rde1 {
[%emt 0:00:00]} Kf7 {[%emt 0:00:00]} 24. h4 {[%emt 0:00:00]} Nc4 {[%emt 0:00:
00]} 25. Nxc4 {[%emt 0:00:00]} bxc4 {[%emt 0:00:00]} 26. g4 {[%emt 0:00:55]}
fxg4 {[%emt 0:00:00]} 27. Ng5+ {[%emt 0:00:26]} Bxg5 {[%emt 0:00:00]} 28. hxg5
{[%emt 0:00:04]} h5 {[%emt 0:00:00]} 29. gxh6 {[%emt 0:00:37]} Rh8 {[%emt 0:00:
00]} 30. Bg3 {[%emt 0:01:19]} Rc7 {[%emt 0:00:40]} 31. Kg2 {[%emt 0:01:17]}
Rxh6 {[%emt 0:00:07]} 32. Re4 {[%emt 0:00:13]} Nf6 {[%emt 0:00:10]} 33. R4e3 {
[%emt 0:00:13]} Rh5 {[%emt 0:00:21]} 34. R3e2 {[%emt 0:00:37]} Rf5 {[%emt 0:00:
00]} 35. Rh1 {[%emt 0:01:53]} g5 {[%emt 0:06:48]} 36. Rhe1 {[%emt 0:01:47]} Rd7
{[%emt 0:01:52]} 37. Rh1 {[%emt 0:00:00]} Rd8 {[%emt 0:00:50]} 38. Rhe1 {
[%emt 0:00:00]} Re8 {[%emt 0:00:28]} 39. Re6 {[%emt 0:00:00]} Rb5 {[%emt 0:00:
00]} 40. R6e2 {[%emt 0:00:00]} Rb6 {[%emt 0:04:11]} 41. Rd1 {[%emt 0:30:45]} e6
{[%emt 0:32:56]} 42. Rde1 {[%emt 0:00:00]} d5 {[%emt 0:00:00]} 43. Bc7 {
[%emt 0:00:00]} Rc6 {[%emt 0:00:00]} 44. Be5 {[%emt 0:00:00]} Ne4 {[%emt 0:00:
00]} 45. Rg1 {[%emt 0:00:00]} Kg6 {[%emt 0:00:00]} 46. Kf1 {[%emt 0:00:00]} Kf5
{[%emt 0:00:00]} 47. Rh1 {[%emt 0:00:00]} Kg6 {[%emt 0:00:00]} 48. Rg1 {
[%emt 0:01:08]} Kf5 {[%emt 0:00:00]} 49. Rh1 {[%emt 0:00:00]} Kg6 {[%emt 0:00:
00]} 1/2-1/2

[Event "44th Chess Olympiad Open 2022"]
[Site "Chennai"]
[Date "2022.07.31"]
[Round "3.30"]
[White "Araoun, Saadi"]
[Black "Roselli Mailhe, Bernardo"]
[Result "0-1"]
[WhiteElo "2049"]
[BlackElo "2413"]
[Annotator "RC"]
[PlyCount "54"]
[EventDate "2022.??.??"]
[TimeControl "60"]

1. d4 {[%emt 0:00:04]} Nf6 {[%emt 0:00:27]} 2. Nf3 {[%emt 0:00:06]} g6 {
[%emt 0:04:31]} 3. Bf4 {[%emt 0:00:13]} Bg7 {[%emt 0:00:05]} 4. e3 {[%emt 0:00:
00]} O-O {[%emt 0:01:52]} 5. h3 {[%emt 0:00:31]} c5 {[%emt 0:01:52]} 6. c3 {
[%emt 0:01:20]} d6 {[%emt 0:00:32]} 7. dxc5 {[%emt 0:05:25]} dxc5 {[%emt 0:00:
00]} 8. Nbd2 {[%emt 0:00:31]} b6 {[%emt 0:08:57]} 9. Be2 {[%emt 0:01:05]} Bb7 {
[%emt 0:03:39]} 10. O-O {[%emt 0:01:05]} Nc6 {[%emt 0:04:41]} 11. Qc2 {[%emt 0:
00:00]} Nd5 {[%emt 0:08:20]} 12. Bh2 {[%emt 0:03:01]} e5 {[%emt 0:01:36]} 13.
Rfd1 {[%emt 0:11:42]} Qe7 {[%emt 0:04:13]} 14. Nc4 {[%emt 0:04:36]} Rad8 {
[%emt 0:10:40]} 15. Qb3 {[%emt 0:09:51]} Nc7 {[%emt 0:11:17]} 16. a4 {[%emt 0:
00:00]} Ba6 {[%emt 0:02:09]} 17. Bf1 {[%emt 0:14:30]} h6 {[%emt 0:05:58]} 18.
Nfd2 {[%emt 0:11:30]} Rd7 {[%emt 0:07:50]} 19. Be2 {[%emt 0:08:20]} Qe6 {
[%emt 0:08:29]} 20. Bf3 {[%emt 0:04:51]} Rfd8 {[%emt 0:02:48]} 21. Qc2 {
[%emt 0:04:18]} Ne7 {[%emt 0:06:35]} 22. b3 {[%emt 0:03:09]} Ncd5 {[%emt 0:00:
00]} 23. Nb2 {[%emt 0:01:51]} Nxc3 {[%emt 0:00:58]} 24. Qxc3 {[%emt 0:00:31]}
e4 {[%emt 0:00:05]} 25. Bg4 {[%emt 0:00:32]} Bxc3 {[%emt 0:01:03]} 26. Bxe6 {
[%emt 0:00:02]} fxe6 {[%emt 0:00:16]} 27. Nxe4 {[%emt 0:00:24]} Bxb2 {[%emt 0:
00:00]} 0-1

[Event "44th Chess Olympiad Open 2022"]
[Site "Chennai"]
[Date "2022.07.31"]
[Round "3.31"]
[White "Docx, Stefan"]
[Black "Laohawirapap, Prin"]
[Result "1-0"]
[WhiteElo "2434"]
[BlackElo "2230"]
[Annotator "RC"]
[PlyCount "69"]
[EventDate "2022.??.??"]
[TimeControl "60"]

1. d4 {[%emt 0:00:04]} Nf6 {[%emt 0:00:07]} 2. c4 {[%emt 0:00:11]} g6 {[%emt 0:
00:00]} 3. Nc3 {[%emt 0:00:52]} Bg7 {[%emt 0:00:08]} 4. e4 {[%emt 0:00:10]} d6
{[%emt 0:00:06]} 5. Be2 {[%emt 0:01:33]} O-O {[%emt 0:00:06]} 6. Nf3 {[%emt 0:
00:00]} e5 {[%emt 0:00:47]} 7. Be3 {[%emt 0:05:27]} Ng4 {[%emt 0:02:55]} 8. Bg5
{[%emt 0:02:08]} f6 {[%emt 0:00:07]} 9. Bh4 {[%emt 0:00:47]} Nc6 {[%emt 0:00:
00]} 10. d5 {[%emt 0:00:36]} Ne7 {[%emt 0:00:06]} 11. Nd2 {[%emt 0:00:20]} f5 {
[%emt 0:03:16]} 12. Bxg4 {[%emt 0:01:15]} fxg4 {[%emt 0:00:05]} 13. Bg5 {
[%emt 0:00:24]} h6 {[%emt 0:04:15]} 14. Be3 {[%emt 0:02:44]} g5 {[%emt 0:01:48]
} 15. c5 {[%emt 0:01:38]} Ng6 {[%emt 0:14:02]} 16. Nc4 {[%emt 0:02:36]} dxc5 {
[%emt 0:35:09]} 17. Bxc5 {[%emt 0:00:55]} Rf6 {[%emt 0:00:17]} 18. O-O {
[%emt 0:04:47]} b6 {[%emt 0:03:42]} 19. Be3 {[%emt 0:01:46]} Bf8 {[%emt 0:00:
00]} 20. Rc1 {[%emt 0:00:58]} Bd7 {[%emt 0:03:48]} 21. Ne2 {[%emt 0:25:30]} Qe8
{[%emt 0:06:30]} 22. Ng3 {[%emt 0:10:31]} Nf4 {[%emt 0:04:02]} 23. a3 {[%emt 0:
00:00]} Rf7 {[%emt 0:11:15]} 24. Re1 {[%emt 0:04:10]} h5 {[%emt 0:00:00]} 25.
Rc3 {[%emt 0:01:19]} h4 {[%emt 0:00:00]} 26. Nf5 {[%emt 0:00:11]} b5 {[%emt 0:
00:00]} 27. Na5 {[%emt 0:01:50]} Rxf5 {[%emt 0:00:11]} 28. exf5 {[%emt 0:00:10]
} Bxf5 {[%emt 0:00:03]} 29. Bxf4 {[%emt 0:01:45]} gxf4 {[%emt 0:00:15]} 30.
Rxc7 {[%emt 0:00:16]} Qd8 {[%emt 0:01:35]} 31. d6 {[%emt 0:01:39]} Bxd6 {
[%emt 0:04:20]} 32. Qd5+ {[%emt 0:04:28]} Kh8 {[%emt 0:00:00]} 33. Nb7 {
[%emt 0:00:16]} Qxc7 {[%emt 0:00:00]} 34. Nxd6 {[%emt 0:00:08]} Rf8 {[%emt 0:
00:00]} 35. Qxe5+ {[%emt 0:00:13]} 1-0

[Event "44th Chess Olympiad Open 2022"]
[Site "Chennai"]
[Date "2022.07.31"]
[Round "3.31"]
[White "Hovhannisyan, Mher"]
[Black "Jingjang, Shin"]
[Result "1-0"]
[WhiteElo "2420"]
[BlackElo "1956"]
[Annotator "RC"]
[PlyCount "81"]
[EventDate "2022.??.??"]
[TimeControl "60"]

1. d4 {[%emt 0:00:04]} d5 {[%emt 0:00:09]} 2. c4 {[%emt 0:00:07]} c6 {[%emt 0:
00:00]} 3. Nf3 {[%emt 0:00:04]} Nf6 {[%emt 0:00:56]} 4. Nc3 {[%emt 0:00:24]} a6
{[%emt 0:01:33]} 5. a4 {[%emt 0:01:58]} Bf5 {[%emt 0:01:48]} 6. Qb3 {[%emt 0:
00:00]} Ra7 {[%emt 0:00:49]} 7. a5 {[%emt 0:01:19]} e6 {[%emt 0:03:35]} 8. Qb6
{[%emt 0:00:44]} Qxb6 {[%emt 0:00:19]} 9. axb6 {[%emt 0:00:05]} Ra8 {[%emt 0:
00:00]} 10. c5 {[%emt 0:00:03]} Nbd7 {[%emt 0:24:00]} 11. Bf4 {[%emt 0:00:17]}
Ne4 {[%emt 0:01:06]} 12. e3 {[%emt 0:00:58]} Nxc3 {[%emt 0:08:00]} 13. bxc3 {
[%emt 0:00:06]} Be7 {[%emt 0:05:41]} 14. Ra5 {[%emt 0:06:18]} Be4 {[%emt 0:00:
00]} 15. Nd2 {[%emt 0:04:52]} e5 {[%emt 0:06:17]} 16. Bg3 {[%emt 0:04:12]} Bf5
{[%emt 0:06:29]} 17. Be2 {[%emt 0:00:48]} O-O {[%emt 0:04:36]} 18. O-O {
[%emt 0:01:01]} Rfe8 {[%emt 0:03:57]} 19. Rc1 {[%emt 0:00:57]} Bf6 {[%emt 0:00:
00]} 20. Nb3 {[%emt 0:02:11]} g5 {[%emt 0:10:16]} 21. Ra2 {[%emt 0:02:29]} Nf8
{[%emt 0:06:48]} 22. Na5 {[%emt 0:00:33]} Bc8 {[%emt 0:01:10]} 23. h3 {[%emt 0:
00:00]} Bg7 {[%emt 0:18:07]} 24. Rd2 Ng6 {[%emt 0:00:00]} 25. c4 {[%emt 0:00:
00]} dxc4 {[%emt 0:00:00]} 26. Bxc4 {[%emt 0:00:29]} exd4 {[%emt 0:00:00]} 27.
exd4 {[%emt 0:00:04]} g4 {[%emt 0:02:53]} 28. Rcd1 {[%emt 0:12:22]} Bh6 {
[%emt 0:00:00]} 29. Rd3 {[%emt 0:07:42]} Nf4 {[%emt 0:00:00]} 30. Bxf4 {
[%emt 0:00:52]} Bxf4 {[%emt 0:00:00]} 31. d5 {[%emt 0:05:12]} cxd5 {[%emt 0:00:
00]} 32. Bxd5 {[%emt 0:00:41]} Rb8 {[%emt 0:00:00]} 33. g3 {[%emt 0:08:00]} Bh6
{[%emt 0:00:00]} 34. hxg4 {[%emt 0:02:38]} Bxg4 {[%emt 0:00:00]} 35. Nxb7 {
[%emt 0:01:34]} Bxd1 {[%emt 0:00:00]} 36. Rxd1 {[%emt 0:00:01]} Re2 {[%emt 0:
00:00]} 37. c6 {[%emt 0:02:50]} Bf8 {[%emt 0:00:00]} 38. c7 {[%emt 0:00:35]}
Rbe8 {[%emt 0:00:00]} 39. Nd8 {[%emt 0:00:37]} Re1+ {[%emt 0:00:00]} 40. Rxe1 {
[%emt 0:00:17]} Rxe1+ {[%emt 0:00:00]} 41. Kg2 {[%emt 0:30:16]} 1-0

[Event "44th Chess Olympiad Open 2022"]
[Site "Chennai"]
[Date "2022.07.31"]
[Round "3.31"]
[White "Kulpruethanon, Thanadon"]
[Black "Dardha, Daniel"]
[Result "1-0"]
[WhiteElo "2294"]
[BlackElo "2575"]
[Annotator "RC"]
[PlyCount "99"]
[EventDate "2022.??.??"]
[TimeControl "60"]

1. d4 {[%emt 0:00:04]} g6 {[%emt 0:00:35]} 2. e4 {[%emt 0:00:30]} Bg7 {[%emt 0:
00:00]} 3. Nc3 {[%emt 0:00:12]} c6 {[%emt 0:01:06]} 4. Be3 {[%emt 0:01:28]} d5
{[%emt 0:07:22]} 5. e5 {[%emt 0:00:45]} Qb6 {[%emt 0:02:09]} 6. Na4 {[%emt 0:
00:00]} Qc7 {[%emt 0:04:47]} 7. Qd2 {[%emt 0:01:58]} Nd7 {[%emt 0:07:39]} 8. f4
{[%emt 0:05:29]} b5 {[%emt 0:20:41]} 9. Nc3 {[%emt 0:01:16]} Nb6 {[%emt 0:00:
00]} 10. b3 {[%emt 0:02:44]} Nh6 {[%emt 0:03:18]} 11. h3 {[%emt 0:05:28]} f6 {
[%emt 0:01:18]} 12. g4 {[%emt 0:03:16]} Nf7 {[%emt 0:03:12]} 13. Nf3 {[%emt 0:
00:00]} O-O {[%emt 0:06:12]} 14. Bg2 {[%emt 0:09:58]} fxe5 {[%emt 0:01:05]} 15.
fxe5 {[%emt 0:06:13]} e6 {[%emt 0:01:27]} 16. O-O {[%emt 0:03:39]} b4 {[%emt 0:
00:00]} 17. Ne2 {[%emt 0:00:40]} Ba6 {[%emt 0:01:37]} 18. Rfe1 {[%emt 0:01:33]}
Bxe2 {[%emt 0:02:03]} 19. Rxe2 {[%emt 0:00:36]} a5 {[%emt 0:02:00]} 20. Rc1 {
[%emt 0:06:35]} Qe7 {[%emt 0:04:03]} 21. c3 {[%emt 0:01:50]} bxc3 {[%emt 0:00:
00]} 22. Rxc3 {[%emt 0:00:22]} Nd8 {[%emt 0:05:46]} 23. Bg5 {[%emt 0:00:53]}
Qb7 {[%emt 0:02:16]} 24. Qc1 {[%emt 0:00:21]} Qa7 {[%emt 0:00:47]} 25. Bxd8 {
[%emt 0:01:26]} Raxd8 {[%emt 0:00:08]} 26. Rxc6 {[%emt 0:00:08]} Rc8 {[%emt 0:
00:00]} 27. Qc5 {[%emt 0:03:59]} Qd7 {[%emt 0:00:00]} 28. Rxc8 {[%emt 0:01:17]}
Nxc8 {[%emt 0:00:00]} 29. Qxa5 {[%emt 0:00:07]} Qc6 {[%emt 0:00:00]} 30. Qc5 {
[%emt 0:01:00]} Qa6 {[%emt 0:00:00]} 31. Rf2 {[%emt 0:01:21]} Bh6 {[%emt 0:00:
00]} 32. g5 {[%emt 0:04:36]} Bg7 {[%emt 0:00:09]} 33. h4 {[%emt 0:00:48]} h5 {
[%emt 0:00:13]} 34. Bf1 {[%emt 0:01:46]} Qb7 {[%emt 0:00:24]} 35. Bh3 {[%emt 0:
00:00]} Qf7 {[%emt 0:01:38]} 36. Qc6 {[%emt 0:00:42]} Qf4 {[%emt 0:01:01]} 37.
Qxe6+ {[%emt 0:02:13]} Kh7 {[%emt 0:00:02]} 38. Kg2 {[%emt 0:01:34]} Qe4 {
[%emt 0:01:18]} 39. Qa6 {[%emt 0:01:00]} Ne7 {[%emt 0:03:38]} 40. Qe2 {[%emt 0:
00:00]} Qf4 {[%emt 0:01:30]} 41. Qd2 {[%emt 0:31:08]} Qe4 {[%emt 0:30:19]} 42.
Qe2 {[%emt 0:00:00]} Qf4 {[%emt 0:00:00]} 43. Qf1 {[%emt 0:00:00]} Qe4 {
[%emt 0:00:00]} 44. Re2 {[%emt 0:00:00]} Qd3 {[%emt 0:00:00]} 45. Qf2 {[%emt 0:
00:00]} Nc6 {[%emt 0:00:00]} 46. Re3 {[%emt 0:00:00]} Qb1 {[%emt 0:03:12]} 47.
Qd2 {[%emt 0:00:00]} Ra8 {[%emt 0:00:00]} 48. Re2 {[%emt 0:00:00]} Ne7 {
[%emt 0:02:05]} 49. Qc2 {[%emt 0:00:00]} Qa1 {[%emt 0:00:00]} 50. Qb2 {[%emt 0:
00:00]} 1-0